fUST/lending_fUST_20260220
["ID","MTS","AMOUNT","RATE_DAILY","PERIOD"]
[406177170,1771594265567,-500.0,0.00033972,19]
[406177171,1771594265576,-402.65229907,0.00033972,19]
[406177172,1771594265586,-1094.11,0.00033972,19]
[406177173,1771594265595,-6559.03,0.00033972,19]
[406177174,1771594265604,-834.76,0.00033972,19]
[406177175,1771594265613,-4428.55,0.00033972,19]
[406177176,1771594265622,-3045.11,0.00033972,19]
[406177177,1771594265631,-3778.79,0.00033972,19]
[406177178,1771594265641,-2403.38,0.00033972,19]
[406177179,1771594265650,-6061.45,0.00033972,19]
[406177180,1771594265659,-1161.59,0.00033972,2]
[406177181,1771594265669,-644.9,0.00033972,19]
[406177182,1771594265678,-773.9,0.00033972,19]
[406177183,1771594265687,-500.0,0.00033972,19]
[406177184,1771594265696,-4237.47,0.00033972,19]
[406177185,1771594265705,-561.38130834,0.00033972,19]
[406177186,1771594265717,-41021.55574211,0.00034,14]
[406177187,1771594265726,-4606.80945684,0.00034,7]
[406177188,1771594265735,-159.80297487,0.00034,10]
[406177189,1771594265745,-743.73449086,0.00034,3]
[406177190,1771594265754,-207.15,0.00034,30]
[406177191,1771594265765,-400.16360846,0.00034223,7]
[406177192,1771594265774,-2247.32,0.00034246,19]
[406177193,1771594265784,-597.18337017,0.00034246,19]
[406177194,1771594265794,-500.0,0.00034246,19]
[406177195,1771594265802,-1000.0,0.00034246,2]
[406177196,1771594265811,-500.0,0.00034246,19]
[406177197,1771594265820,-2106.9,0.00034246,19]
[406177198,1771594265829,-500.0,0.00034246,19]
[406177199,1771594265838,-552.46,0.00034246,19]
[406177200,1771594265847,-1000.0,0.00034246,2]
[406177201,1771594265856,-154.84340309,0.00034246,19]
[406177202,1771594265866,-500.0,0.00034246,19]
[406177203,1771594265876,-500.0,0.00034246,19]
[406177204,1771594265885,-500.0,0.00034246,19]
[406177205,1771594265894,-500.0,0.00034246,19]
[406177206,1771594265903,-500.0,0.00034246,19]
[406177207,1771594265912,-500.0,0.00034246,19]
[406177208,1771594265921,-153.31018992,0.00034246,19]
[406177209,1771594265930,-500.0,0.00034246,19]
[406177210,1771594265940,-500.0,0.00034246,19]
[406177211,1771594265950,-500.0,0.00034246,19]
[406177212,1771594265959,-500.0,0.00034246,19]
[406177213,1771594265968,-576.64,0.00034246,19]
[406177214,1771594265977,-805.18,0.00034246,19]
[406177215,1771594265987,-779.46,0.00034246,19]
[406177216,1771594265996,-1823.98,0.00034246,19]
[406177217,1771594266005,-500.0,0.00034246,19]
[406177218,1771594266014,-500.0,0.00034246,19]
[406177219,1771594266023,-2393.4,0.00034246,19]
[406177220,1771594266031,-2414.28,0.00034246,19]
[406177221,1771594266041,-500.0,0.00034246,19]
[406177222,1771594266050,-999.0,0.00034246,120]
[406177223,1771594266059,-500.0,0.00034246,19]
[406177224,1771594266070,-500.0,0.00034246,19]
[406177225,1771594266080,-22546.83,0.00034246,19]
[406177226,1771594266089,-3157.46,0.00034246,19]
[406177227,1771594266098,-500.0,0.00034246,19]
[406177228,1771594266107,-1094.11,0.00034246,19]
[406177229,1771594266117,-6559.03,0.00034246,19]
[406177230,1771594266125,-834.76,0.00034246,19]
[406177231,1771594266134,-4428.55,0.00034246,19]
[406177232,1771594266143,-3045.11,0.00034246,19]
[406177233,1771594266152,-3778.79,0.00034246,19]
[406177234,1771594266161,-2403.38,0.00034246,19]
[406177235,1771594266170,-6061.45,0.00034246,19]
[406177236,1771594266179,-1161.59,0.00034246,2]
[406177237,1771594266188,-644.9,0.00034246,19]
[406177238,1771594266197,-773.9,0.00034246,19]
[406177239,1771594266206,-500.0,0.00034246,19]
[406177240,1771594266217,-4237.47,0.00034246,19]
[406177241,1771594266227,-2247.32,0.0003452,19]
[406177242,1771594266237,-500.0,0.0003452,19]
[406177243,1771594266248,-1000.0,0.0003452,2]
[406177244,1771594266257,-500.0,0.0003452,19]
[406177245,1771594266266,-2106.9,0.0003452,19]
[406177246,1771594266275,-605.15733349,0.0003452,19]
[406177247,1771594266284,-552.46,0.0003452,19]
[406177248,1771594266293,-1000.0,0.0003452,2]
[406177249,1771594266302,-500.0,0.0003452,19]
[406177250,1771594266311,-500.0,0.0003452,19]
[406177251,1771594266319,-500.0,0.0003452,19]
[406177252,1771594266328,-500.0,0.0003452,19]
[406177253,1771594266337,-500.0,0.0003452,19]
[406177254,1771594266346,-500.0,0.0003452,19]
[406177255,1771594266355,-500.0,0.0003452,19]
[406177256,1771594266364,-500.0,0.0003452,19]
[406177257,1771594266373,-500.0,0.0003452,19]
[406177258,1771594266382,-500.0,0.0003452,19]
[406177259,1771594266392,-576.64,0.0003452,19]
[406177260,1771594266401,-805.18,0.0003452,19]
[406177261,1771594266410,-779.46,0.0003452,19]
[406177262,1771594266421,-1823.98,0.0003452,19]
[406177263,1771594266430,-500.0,0.0003452,19]
[406177264,1771594266439,-500.0,0.0003452,19]
[406177265,1771594266448,-2393.4,0.0003452,19]
[406177266,1771594266458,-2414.28,0.0003452,19]
[406177267,1771594266467,-500.0,0.0003452,19]
[406177268,1771594266476,-500.0,0.0003452,19]
[406177269,1771594266485,-500.0,0.0003452,19]
[406177270,1771594266495,-22546.83,0.0003452,19]
[406177271,1771594266504,-3157.46,0.0003452,19]
[406177272,1771594266513,-500.0,0.0003452,19]
[406177273,1771594266523,-1094.11,0.0003452,19]
[406177274,1771594266603,-6559.03,0.0003452,19]
[406177275,1771594266613,-834.76,0.0003452,19]
[406177276,1771594266622,-4428.55,0.0003452,19]
[406177277,1771594266631,-3045.11,0.0003452,19]
[406177278,1771594266639,-3778.79,0.0003452,19]
[406177279,1771594266649,-2403.38,0.0003452,19]
[406177280,1771594266658,-6061.45,0.0003452,19]
[406177281,1771594266667,-1161.59,0.0003452,2]
[406177282,1771594266676,-644.9,0.0003452,19]
[406177283,1771594266684,-773.9,0.0003452,19]
[406177284,1771594266694,-500.0,0.0003452,19]
[406177285,1771594266703,-4237.47,0.0003452,19]
[406177286,1771594266712,-3682.68626525,0.00034673,2]
[406177287,1771594266725,-161.0,0.00034767,72]
[406177288,1771594266734,-2247.32,0.00034794,19]
[406177289,1771594266744,-500.0,0.00034794,19]
[406177290,1771594266754,-1000.0,0.00034794,2]
[406177291,1771594266765,-500.0,0.00034794,19]
[406177292,1771594266775,-2106.9,0.00034794,19]
[406177293,1771594266784,-552.46,0.00034794,19]
[406177294,1771594266799,-1000.0,0.00034794,2]
[406177295,1771594266808,-500.0,0.00034794,19]
[406177296,1771594266817,-500.0,0.00034794,19]
[406177297,1771594266827,-500.0,0.00034794,19]
[406177298,1771594266836,-500.0,0.00034794,19]
[406177299,1771594266845,-500.0,0.00034794,19]
[406177300,1771594266854,-500.0,0.00034794,19]
[406177301,1771594266865,-500.0,0.00034794,19]
[406177302,1771594266874,-500.0,0.00034794,19]
[406177303,1771594266883,-500.0,0.00034794,19]
[406177304,1771594266893,-500.0,0.00034794,19]
[406177305,1771594266902,-576.64,0.00034794,19]
[406177306,1771594266911,-805.18,0.00034794,19]
[406177307,1771594266920,-779.46,0.00034794,19]
[406177308,1771594266929,-1823.98,0.00034794,19]
[406177309,1771594266939,-500.0,0.00034794,19]
[406177310,1771594266948,-500.0,0.00034794,19]
[406177311,1771594266957,-2393.4,0.00034794,19]
[406177312,1771594266968,-2414.28,0.00034794,19]
[406177313,1771594266977,-500.0,0.00034794,19]
[406177314,1771594266987,-500.0,0.00034794,19]
[406177315,1771594266996,-500.0,0.00034794,19]
[406177316,1771594267005,-22546.83,0.00034794,19]
[406177317,1771594267015,-3157.46,0.00034794,19]
[406177318,1771594267024,-500.0,0.00034794,19]
[406177319,1771594267033,-1094.11,0.00034794,19]
[406177320,1771594267042,-6559.03,0.00034794,19]
[406177321,1771594267052,-834.76,0.00034794,19]
[406177322,1771594267062,-4428.55,0.00034794,19]
[406177323,1771594267070,-3045.11,0.00034794,19]
[406177324,1771594267079,-3778.79,0.00034794,19]
[406177325,1771594267088,-2403.38,0.00034794,19]
[406177326,1771594267097,-6061.45,0.00034794,19]
[406177327,1771594267106,-1161.59,0.00034794,2]
[406177328,1771594267116,-644.9,0.00034794,19]
[406177329,1771594267125,-773.9,0.00034794,19]
[406177330,1771594267134,-500.0,0.00034794,19]
[406177331,1771594267143,-4237.47,0.00034794,19]
[406177332,1771594267153,-487.0,0.00034794,2]
[406177333,1771594267164,-963.25,0.00034794,2]
[406177334,1771594267172,-500.1,0.000348,14]
[406177335,1771594267182,-29147.55182751,0.0003484,10]
[406177336,1771594267193,-1000.0,0.00035,7]
[406177337,1771594267204,-525.21357826,0.00035,14]
[406177338,1771594267213,-4830.0,0.00035,7]
[406177339,1771594267222,-743.73449086,0.00035,3]
[406177340,1771594267232,-743.73449086,0.00035,7]
[406177341,1771594267242,-2247.32,0.00035068,19]
[406177342,1771594267251,-500.0,0.00035068,19]
[406177343,1771594267260,-1000.0,0.00035068,2]
[406177344,1771594267269,-500.0,0.00035068,19]
[406177345,1771594267279,-2106.9,0.00035068,19]
[406177346,1771594267289,-552.46,0.00035068,19]
[406177347,1771594267299,-1000.0,0.00035068,2]
[406177348,1771594267309,-500.0,0.00035068,19]
[406177349,1771594267319,-500.0,0.00035068,19]
[406177350,1771594267329,-500.0,0.00035068,19]
[406177351,1771594267338,-500.0,0.00035068,19]
[406177352,1771594267347,-500.0,0.00035068,19]
[406177353,1771594267356,-500.0,0.00035068,19]
[406177354,1771594267367,-500.0,0.00035068,19]
[406177355,1771594267376,-500.0,0.00035068,19]
[406177356,1771594267385,-500.0,0.00035068,19]
[406177357,1771594267395,-500.0,0.00035068,19]
[406177358,1771594267404,-576.64,0.00035068,19]
[406177359,1771594267413,-805.18,0.00035068,19]
[406177360,1771594267423,-779.46,0.00035068,19]
[406177361,1771594267433,-1823.98,0.00035068,19]
[406177362,1771594267442,-500.0,0.00035068,19]
[406177363,1771594267451,-500.0,0.00035068,19]
[406177364,1771594267460,-2393.4,0.00035068,19]
[406177365,1771594267470,-2414.28,0.00035068,19]
[406177366,1771594267479,-500.0,0.00035068,19]
[406177367,1771594267488,-500.0,0.00035068,19]
[406177368,1771594267498,-338.19041212,0.00035068,19]
[406177369,1771594267507,-22546.83,0.00035068,19]
[406177370,1771594267516,-3157.46,0.00035068,19]
[406177371,1771594267525,-592.22446856,0.00035068,19]
[406177372,1771594267534,-1094.11,0.00035068,19]
[406177373,1771594267543,-6559.03,0.00035068,19]
[406177374,1771594267552,-834.76,0.00035068,19]
[406177375,1771594267561,-4428.55,0.00035068,19]
[406177376,1771594267571,-3045.11,0.00035068,19]
[406177377,1771594267580,-3778.79,0.00035068,19]
[406177378,1771594267589,-2403.38,0.00035068,19]
[406177379,1771594267598,-6061.45,0.00035068,19]
[406177380,1771594267607,-1161.59,0.00035068,2]
[406177381,1771594267618,-644.9,0.00035068,19]
[406177382,1771594267628,-773.9,0.00035068,19]
[406177383,1771594267638,-500.0,0.00035068,19]
[406177384,1771594267647,-4237.47,0.00035068,19]
[406177385,1771594267656,-2247.32,0.00035342,19]
[406177386,1771594267665,-500.0,0.00035342,19]
[406177387,1771594267675,-782.17622728,0.00035342,2]
[406177388,1771594267684,-500.0,0.00035342,19]
[406177389,1771594267693,-2106.9,0.00035342,19]
[406177390,1771594267702,-552.46,0.00035342,19]
[406177391,1771594267711,-1000.0,0.00035342,2]
[406177392,1771594267723,-333.09438014,0.00035342,19]
[406177393,1771594267732,-500.0,0.00035342,19]
[406177394,1771594267741,-500.0,0.00035342,19]
[406177395,1771594267750,-500.0,0.00035342,19]
[406177396,1771594267760,-500.0,0.00035342,19]
[406177397,1771594267770,-500.0,0.00035342,19]
[406177398,1771594267779,-500.0,0.00035342,19]
[406177399,1771594267788,-500.0,0.00035342,19]
[406177400,1771594267798,-500.0,0.00035342,19]
[406177401,1771594267808,-500.0,0.00035342,19]
[406177402,1771594267817,-576.64,0.00035342,19]
[406177403,1771594267826,-805.18,0.00035342,19]
[406177404,1771594267836,-779.46,0.00035342,19]
[406177405,1771594267845,-1823.98,0.00035342,19]
[406177406,1771594267854,-500.0,0.00035342,19]
[406177407,1771594267864,-500.0,0.00035342,19]
[406177408,1771594267874,-2393.4,0.00035342,19]
[406177409,1771594267883,-2414.28,0.00035342,19]
[406177410,1771594267892,-500.0,0.00035342,19]
[406177411,1771594267902,-500.0,0.00035342,19]
[406177412,1771594267911,-22546.83,0.00035342,19]
[406177413,1771594267920,-3157.46,0.00035342,19]
[406177414,1771594267929,-1094.11,0.00035342,19]
[406177415,1771594267939,-6559.03,0.00035342,19]
[406177416,1771594267949,-834.76,0.00035342,19]
[406177417,1771594267958,-4428.55,0.00035342,19]
[406177418,1771594267967,-3045.11,0.00035342,19]
[406177419,1771594267976,-3778.79,0.00035342,19]
[406177420,1771594267985,-2403.38,0.00035342,19]
[406177421,1771594267994,-6061.45,0.00035342,19]
[406177422,1771594268004,-1161.59,0.00035342,2]
[406177423,1771594268014,-644.9,0.00035342,19]
[406177424,1771594268024,-773.9,0.00035342,19]
[406177425,1771594268100,-500.0,0.00035342,19]
[406177426,1771594268111,-4237.47,0.00035342,19]
[406177427,1771594268120,-160.0,0.00035552,3]
[406177428,1771594268130,-2247.32,0.00035616,19]
[406177429,1771594268140,-500.0,0.00035616,19]
[406177430,1771594268149,-264.7793887,0.00035616,19]
[406177431,1771594268158,-2106.9,0.00035616,19]
[406177432,1771594268167,-552.46,0.00035616,19]
[406177433,1771594268176,-1000.0,0.00035616,2]
[406177434,1771594268186,-500.0,0.00035616,19]
[406177435,1771594268195,-500.0,0.00035616,19]
[406177436,1771594268203,-500.0,0.00035616,19]
[406177437,1771594268213,-500.0,0.00035616,19]
[406177438,1771594268222,-500.0,0.00035616,19]
[406177439,1771594268232,-500.0,0.00035616,19]
[406177440,1771594268241,-500.0,0.00035616,19]
[406177441,1771594268250,-500.0,0.00035616,19]
[406177442,1771594268259,-500.0,0.00035616,19]
[406177443,1771594268268,-576.64,0.00035616,19]
[406177444,1771594268277,-805.18,0.00035616,19]
[406177445,1771594268287,-779.46,0.00035616,19]
[406177446,1771594268296,-1823.98,0.00035616,19]
[406177447,1771594268305,-500.0,0.00035616,19]
[406177448,1771594268315,-500.0,0.00035616,19]
[406177449,1771594268324,-2393.4,0.00035616,19]
[406177450,1771594268334,-2414.28,0.00035616,19]
[406177451,1771594268343,-999.0,0.00035616,120]
[406177452,1771594268352,-500.0,0.00035616,19]
[406177453,1771594268363,-500.0,0.00035616,19]
[406177454,1771594268373,-22546.83,0.00035616,19]
[406177455,1771594268383,-3157.46,0.00035616,19]
[406177456,1771594268392,-1094.11,0.00035616,19]
[406177457,1771594268402,-6559.03,0.00035616,19]
[406177458,1771594268412,-834.76,0.00035616,19]
[406177459,1771594268422,-4428.55,0.00035616,19]
[406177460,1771594268431,-3045.11,0.00035616,19]
[406177461,1771594268441,-3778.79,0.00035616,19]
[406177462,1771594268450,-2403.38,0.00035616,19]
[406177463,1771594268460,-6061.45,0.00035616,19]
[406177464,1771594268469,-1161.59,0.00035616,2]
[406177465,1771594268479,-644.9,0.00035616,19]
[406177466,1771594268488,-773.9,0.00035616,19]
[406177467,1771594268497,-4237.47,0.00035616,19]
[406177468,1771594268506,-429.98927031,0.00035616,19]
[406177469,1771594268516,-178.42003022,0.00035616,2]
[406177470,1771594268525,-1000.0,0.00035776,30]
[406177471,1771594268534,-1000.0,0.00035776,30]
[406177472,1771594268544,-2247.32,0.0003589,19]
[406177473,1771594268553,-500.0,0.0003589,19]
[406177474,1771594268563,-2106.9,0.0003589,19]
[406177475,1771594268572,-552.46,0.0003589,19]
[406177476,1771594268582,-1000.0,0.0003589,2]
[406177477,1771594268591,-372.94247227,0.0003589,19]
[406177478,1771594268601,-500.0,0.0003589,19]
[406177479,1771594268611,-500.0,0.0003589,19]
[406177480,1771594268622,-519.25525888,0.0003589,19]
[406177481,1771594268632,-500.0,0.0003589,19]
[406177482,1771594268643,-500.0,0.0003589,19]
[406177483,1771594268653,-500.0,0.0003589,19]
[406177484,1771594268663,-500.0,0.0003589,19]
[406177485,1771594268673,-500.0,0.0003589,19]
[406177486,1771594268683,-576.64,0.0003589,19]
[406177487,1771594268692,-805.18,0.0003589,19]
[406177488,1771594268702,-779.46,0.0003589,19]
[406177489,1771594268730,-1823.98,0.0003589,19]
[406177490,1771594268750,-500.0,0.0003589,19]
[406177491,1771594268769,-500.0,0.0003589,19]
[406177492,1771594268779,-2393.4,0.0003589,19]
[406177493,1771594268789,-2414.28,0.0003589,19]
[406177494,1771594268798,-500.0,0.0003589,19]
[406177495,1771594268808,-500.0,0.0003589,19]
[406177496,1771594268818,-22546.83,0.0003589,19]
[406177497,1771594268827,-3157.46,0.0003589,19]
[406177498,1771594268837,-1094.11,0.0003589,19]
[406177499,1771594268847,-6559.03,0.0003589,19]
[406177500,1771594268857,-834.76,0.0003589,19]
[406177501,1771594268868,-4428.55,0.0003589,19]
[406177502,1771594268877,-3045.11,0.0003589,19]
[406177503,1771594268887,-3778.79,0.0003589,19]
[406177504,1771594268897,-2403.38,0.0003589,19]
[406177505,1771594268906,-6061.45,0.0003589,19]
[406177506,1771594268918,-1161.59,0.0003589,2]
[406177507,1771594268928,-644.9,0.0003589,19]
[406177508,1771594268937,-773.9,0.0003589,19]
[406177509,1771594268946,-4237.47,0.0003589,19]
[406177510,1771594268956,-167.0,0.00036,5]
[406177511,1771594268965,-27571.91,0.00036,2]
[406177512,1771594268975,-2247.32,0.00036164,19]
[406177513,1771594268985,-500.0,0.00036164,19]
[406177514,1771594268995,-2106.9,0.00036164,19]
[406177515,1771594269005,-552.46,0.00036164,19]
[406177516,1771594269015,-1000.0,0.00036164,2]
[406177517,1771594269025,-500.0,0.00036164,19]
[406177518,1771594269034,-500.0,0.00036164,19]
[406177519,1771594269044,-500.0,0.00036164,19]
[406177520,1771594269057,-500.0,0.00036164,19]
[406177521,1771594269067,-573.92026485,0.00036164,19]
[406177522,1771594269076,-375.16934878,0.00036164,19]
[406177523,1771594269086,-500.0,0.00036164,19]
[406177524,1771594269096,-576.64,0.00036164,19]
[406177525,1771594269106,-805.18,0.00036164,19]
[406177526,1771594269117,-779.46,0.00036164,19]
[406177527,1771594269126,-1823.98,0.00036164,19]
[406177528,1771594269136,-500.0,0.00036164,19]
[406177529,1771594269146,-500.0,0.00036164,19]
[406177530,1771594269155,-2393.4,0.00036164,19]
[406177531,1771594269164,-2414.28,0.00036164,19]
[406177532,1771594269174,-500.0,0.00036164,19]
[406177533,1771594269184,-500.0,0.00036164,19]
[406177534,1771594269194,-22546.83,0.00036164,19]
[406177535,1771594269203,-3157.46,0.00036164,19]
[406177536,1771594269213,-1094.11,0.00036164,19]
[406177537,1771594269223,-6559.03,0.00036164,19]
[406177538,1771594269232,-834.76,0.00036164,19]
[406177539,1771594269242,-4428.55,0.00036164,19]
[406177540,1771594269251,-3045.11,0.00036164,19]
[406177541,1771594269260,-3778.79,0.00036164,19]
[406177542,1771594269269,-2403.38,0.00036164,19]
[406177543,1771594269279,-6061.45,0.00036164,19]
[406177544,1771594269288,-1161.59,0.00036164,2]
[406177545,1771594269297,-644.9,0.00036164,19]
[406177546,1771594269306,-773.9,0.00036164,19]
[406177547,1771594269315,-4237.47,0.00036164,19]
[406177548,1771594269325,-2247.32,0.00036438,19]
[406177549,1771594269335,-500.0,0.00036438,19]
[406177550,1771594269344,-2106.9,0.00036438,19]
[406177551,1771594269354,-552.46,0.00036438,19]
[406177552,1771594269365,-1000.0,0.00036438,2]
[406177553,1771594269375,-500.0,0.00036438,19]
[406177554,1771594269385,-500.0,0.00036438,19]
[406177555,1771594269395,-223.6847842,0.00036438,19]
[406177556,1771594269404,-500.0,0.00036438,19]
[406177557,1771594269414,-500.0,0.00036438,19]
[406177558,1771594269423,-576.64,0.00036438,19]
[406177559,1771594269432,-805.18,0.00036438,19]
[406177560,1771594269441,-779.46,0.00036438,19]
[406177561,1771594269450,-1823.98,0.00036438,19]
[406177562,1771594269460,-500.0,0.00036438,19]
[406177563,1771594269469,-500.0,0.00036438,19]
[406177564,1771594269568,-2393.4,0.00036438,19]
[406177565,1771594269579,-2414.28,0.00036438,19]
[406177566,1771594269589,-500.0,0.00036438,19]
[406177567,1771594269598,-500.0,0.00036438,19]
[406177568,1771594269607,-22546.83,0.00036438,19]
[406177569,1771594269622,-3157.46,0.00036438,19]
[406177570,1771594269630,-1094.11,0.00036438,19]
[406177571,1771594269640,-6559.03,0.00036438,19]
[406177572,1771594269649,-834.76,0.00036438,19]
[406177573,1771594269658,-4428.55,0.00036438,19]
[406177574,1771594269668,-3045.11,0.00036438,19]
[406177575,1771594269676,-3778.79,0.00036438,19]
[406177576,1771594269686,-2403.38,0.00036438,19]
[406177577,1771594269695,-6061.45,0.00036438,19]
[406177578,1771594269705,-1161.59,0.00036438,2]
[406177579,1771594269722,-644.9,0.00036438,19]
[406177580,1771594269741,-773.9,0.00036438,19]
[406177581,1771594269753,-4237.47,0.00036438,19]
[406177582,1771594269762,-170210.72843857,0.00036531,2]
[406177583,1771594269772,-2000.0,0.00036603,2]
[406177584,1771594269781,-2247.32,0.00036712,19]
[406177585,1771594269790,-500.0,0.00036712,19]
[406177586,1771594269799,-2106.9,0.00036712,19]
[406177587,1771594269808,-552.46,0.00036712,19]
[406177588,1771594269817,-1000.0,0.00036712,2]
[406177589,1771594269826,-500.0,0.00036712,19]
[406177590,1771594269835,-500.0,0.00036712,19]
[406177591,1771594269844,-593.84580704,0.00036712,19]
[406177592,1771594269853,-500.0,0.00036712,19]
[406177593,1771594269862,-576.64,0.00036712,19]
[406177594,1771594269871,-805.18,0.00036712,19]
[406177595,1771594269881,-779.46,0.00036712,19]
[406177596,1771594269890,-1823.98,0.00036712,19]
[406177597,1771594269899,-500.0,0.00036712,19]
[406177598,1771594269908,-500.0,0.00036712,19]
[406177599,1771594269918,-2393.4,0.00036712,19]
[406177600,1771594269927,-2414.28,0.00036712,19]
[406177601,1771594269937,-500.0,0.00036712,19]
[406177602,1771594269947,-500.0,0.00036712,19]
[406177603,1771594269958,-22546.83,0.00036712,19]
[406177604,1771594269968,-3157.46,0.00036712,19]
[406177605,1771594269977,-1094.11,0.00036712,19]
[406177606,1771594269987,-6559.03,0.00036712,19]
[406177607,1771594269997,-834.76,0.00036712,19]
[406177608,1771594270006,-4428.55,0.00036712,19]
[406177609,1771594270018,-3045.11,0.00036712,19]
[406177610,1771594270028,-3778.79,0.00036712,19]
[406177611,1771594270038,-2403.38,0.00036712,19]
[406177612,1771594270047,-6061.45,0.00036712,19]
[406177613,1771594270056,-1161.59,0.00036712,2]
[406177614,1771594270065,-644.9,0.00036712,19]
[406177615,1771594270074,-773.9,0.00036712,19]
[406177616,1771594270083,-4237.47,0.00036712,19]
[406177617,1771594270092,-2247.32,0.00036986,19]
[406177618,1771594270101,-500.0,0.00036986,19]
[406177619,1771594270111,-2106.9,0.00036986,19]
[406177620,1771594270121,-552.46,0.00036986,19]
[406177621,1771594270130,-689.65850878,0.00036986,2]
[406177622,1771594270139,-500.0,0.00036986,19]
[406177623,1771594270148,-500.0,0.00036986,19]
[406177624,1771594270159,-358.2870317,0.00036986,19]
[406177625,1771594270168,-576.64,0.00036986,19]
[406177626,1771594270177,-805.18,0.00036986,19]
[406177627,1771594270186,-779.46,0.00036986,19]
[406177628,1771594270197,-1823.98,0.00036986,19]
[406177629,1771594270207,-500.0,0.00036986,19]
[406177630,1771594270216,-500.0,0.00036986,19]
[406177631,1771594270225,-2393.4,0.00036986,19]
[406177632,1771594270234,-2414.28,0.00036986,19]
[406177633,1771594270244,-999.0,0.00036986,120]
[406177634,1771594270254,-500.0,0.00036986,19]
[406177635,1771594270264,-500.0,0.00036986,19]
[406177636,1771594270273,-22546.83,0.00036986,19]
[406177637,1771594270282,-3157.46,0.00036986,19]
[406177638,1771594270291,-1094.11,0.00036986,19]
[406177639,1771594270301,-6559.03,0.00036986,19]
[406177640,1771594270310,-834.76,0.00036986,19]
[406177641,1771594270319,-4428.55,0.00036986,19]
[406177642,1771594270328,-3045.11,0.00036986,19]
[406177643,1771594270339,-3778.79,0.00036986,19]
[406177644,1771594270348,-2403.38,0.00036986,19]
[406177645,1771594270357,-6061.45,0.00036986,19]
[406177646,1771594270371,-1161.59,0.00036986,2]
[406177647,1771594270380,-644.9,0.00036986,19]
[406177648,1771594270389,-773.9,0.00036986,19]
[406177649,1771594270399,-4237.47,0.00036986,19]
[406177650,1771594270409,-2247.32,0.0003726,19]
[406177651,1771594270419,-500.0,0.0003726,19]
[406177652,1771594270429,-2106.9,0.0003726,19]
[406177653,1771594270438,-552.46,0.0003726,19]
[406177654,1771594270447,-500.0,0.0003726,19]
[406177655,1771594270456,-500.0,0.0003726,19]
[406177656,1771594270465,-576.64,0.0003726,19]
[406177657,1771594270474,-805.18,0.0003726,19]
[406177658,1771594270483,-779.46,0.0003726,19]
[406177659,1771594270494,-1823.98,0.0003726,19]
[406177660,1771594270504,-500.0,0.0003726,19]
[406177661,1771594270515,-500.0,0.0003726,19]
[406177662,1771594270526,-2393.4,0.0003726,19]
[406177663,1771594270536,-2414.28,0.0003726,19]
[406177664,1771594270546,-500.0,0.0003726,19]
[406177665,1771594270556,-500.0,0.0003726,19]
[406177666,1771594270565,-22546.83,0.0003726,19]
[406177667,1771594270574,-3157.46,0.0003726,19]
[406177668,1771594270584,-1094.11,0.0003726,19]
[406177669,1771594270593,-6559.03,0.0003726,19]